bitfinex/quotes_ETHUSD_20260305
["timestamp","ask_amount","ask_price","bid_price","bid_amount"]
[1772746735213,1.47724338,2077.1,2075.9,0.0011]
[1772746737748,1.47724338,2077.1,2075.9,1.20539693]
[1772746739871,1.47724338,2077.4,2076.0,0.065536]
[1772746740163,2.62986025,2077.8,2076.1,0.14948499]
[1772746740675,1.42661804,2077.7,2076.1,0.14948499]
[1772746740819,1.42661804,2077.7,2076.0,0.065536]
[1772746741862,1.42661804,2077.5,2076.1,1.20418091]
[1772746743168,1.42761804,2077.5,2076.1,1.20418091]
[1772746744666,1.42661804,2077.3,2075.9,4.81782366]
[1772746746838,1.42661804,2077.1,2075.9,4.81782366]
[1772746748741,1.42661804,2077.1,2076.0,1.54]
[1772746749075,1.42661804,2077.1,2076.1,1.20418091]
[1772746749835,2.63022485,2077.1,2076.1,1.20418091]
[1772746750042,1.42661804,2077.0,2076.1,1.20418091]
[1772746751249,1.20361194,2077.1,2076.1,1.20418091]
[1772746751250,1.42661804,2077.1,2076.1,1.20418091]
[1772746751571,1.42661804,2077.0,2076.1,1.20418091]
[1772746755178,1.23600496,2077.3,2076.2,1.23321047]
[1772746755671,0.001,2077.2,2076.3,2.43727539]
[1772746756177,0.001,2077.2,2076.4,1.23321047]
[1772746757655,0.001,2077.2,2076.5,2.43715942]
[1772746759074,0.001,2077.2,2076.5,1.20394895]
[1772746759809,0.001,2077.2,2076.4,1.23321047]
[1772746760564,1.23600496,2077.1,2076.1,4.81735969]
[1772746761453,1.23600496,2077.1,2076.1,6.05057016]
[1772746762980,1.23600496,2077.1,2076.2,1.23321047]
[1772746764074,1.23600496,2077.1,2076.3,1.20406492]
[1772746764874,1.23600496,2077.1,2076.3,1.05406492]
[1772746765855,4.8137599,2077.4,2076.3,1.05406492]
[1772746765856,1.23600496,2077.4,2076.4,1.23321047]
[1772746766183,0.001,2077.5,2076.4,1.23321047]
[1772746766184,0.001,2077.5,2076.7,2.43704347]
[1772746766548,0.001,2077.5,2076.8,1.23321047]
[1772746767382,0.001,2077.0,2076.8,1.23321047]
[1772746767694,0.001,2077.5,2076.8,1.23321047]
[1772746768256,0.001,2077.5,2076.9,1.20371707]
[1772746772187,0.001,2077.5,2076.9,2.6686456]
[1772746772486,0.001,2077.5,2077.0,1.46492853]
[1772746773301,0.001,2077.5,2077.1,1.20360117]
[1772746773471,0.001,2077.5,2077.2,1.531]
[1772746775885,0.001,2077.5,2077.3,1.20348529]
[1772746776770,1.41456841,2078.0,2077.3,1.20348529]
[1772746777860,1.41456841,2077.9,2077.2,2.7345372]
[1772746778064,1.41456841,2077.7,2077.2,2.7345372]
[1772746779479,1.41456841,2078.0,2077.2,2.7345372]
[1772746779679,1.41456841,2078.0,2077.2,2.7356372]
[1772746779885,1.41456841,2078.0,2077.2,4.20056573]
[1772746780487,1.41456841,2078.0,2077.3,1.46492853]
[1772746782910,1.41456841,2078.0,2077.4,1.20342736]
[1772746784477,1.41456841,2078.0,2077.4,2.66835589]
[1772746784813,1.41456841,2078.3,2077.5,1.46492853]
[1772746785304,0.90260882,2078.9,2077.4,1.46492853]
[1772746785503,0.90260882,2078.8,2077.4,1.46492853]
[1772746786907,1.20267474,2078.7,2077.6,1.46492853]
[1772746787282,2.10526785,2078.8,2077.6,1.46492853]
[1772746788923,1.20261827,2078.8,2077.8,1.46492853]
[1772746789228,1.0300493,2078.7,2077.8,1.46492853]
[1772746791009,1.0300493,2078.7,2077.9,2.66806631]
[1772746791221,1.0300493,2078.7,2078.0,1.525]
[1772746791916,1.0300493,2078.7,2078.0,2.98992853]
[1772746792810,1.0300493,2078.7,2078.1,1.46492853]
[1772746793013,1.0300493,2078.7,2078.2,1.2029641]
[1772746793195,0.001,2078.5,2078.2,1.2029641]
[1772746793398,0.001,2078.5,2078.2,2.66789263]
[1772746794130,0.001,2078.5,2078.3,1.46492853]
[1772746794933,0.001,2078.5,2078.2,1.2029641]
[1772746795102,1.09169275,2078.5,2077.6,1.46492853]
[1772746795307,1.09169275,2078.5,2077.7,1.20325359]
[1772746797365,1.1094908,2078.3,2077.7,1.20325359]
[1772746798326,0.001,2078.5,2077.7,2.66818212]
[1772746798623,1.11963254,2078.5,2077.7,2.66818212]
[1772746798826,0.001,2078.5,2077.8,1.46492853]
[1772746799519,0.001,2078.5,2078.0,1.46492853]
[1772746801304,0.001,2078.5,2078.1,1.20302199]
[1772746801505,0.001,2078.5,2078.1,2.89370622]
[1772746802017,0.001,2078.5,2078.2,1.69068423]
[1772746802339,0.001,2078.5,2078.3,3.21068423]
[1772746802933,1.15009176,2079.0,2078.3,3.21068423]
[1772746803538,1.17185681,2079.3,2078.5,1.69068423]
[1772746805520,2.37420168,2079.3,2078.6,1.2027326]
[1772746808740,2.37420168,2079.3,2078.6,2.89341683]
[1772746808911,2.40764209,2079.3,2078.6,2.89341683]
[1772746811140,1.22372608,2079.2,2078.6,2.89341683]
[1772746811638,1.22372608,2079.2,2078.6,2.89340334]
[1772746813450,2.42611967,2079.2,2078.6,2.89340334]
[1772746813945,1.22372608,2079.2,2078.6,2.89340334]
[1772746814717,2.42611546,2079.2,2078.6,2.89340334]
[1772746815267,1.22372608,2079.2,2078.6,2.89340334]
[1772746818248,2.42611867,2079.2,2078.6,2.89340334]
[1772746818454,1.20239259,2079.2,2078.6,2.89340334]
[1772746818649,1.26222472,2079.1,2078.6,2.89340334]
[1772746819644,1.26222472,2079.1,2078.7,0.0011]
[1772746819822,1.26322472,2079.1,2078.7,0.0011]
[1772746820730,1.26322472,2079.1,2078.7,1.69178423]
[1772746821641,1.26322472,2079.1,2078.8,1.20261689]
[1772746827938,1.26322472,2079.1,2078.8,2.89330112]
[1772746828250,1.30723406,2079.3,2078.8,2.89330112]
[1772746828655,1.30723406,2079.3,2078.8,2.88056692]
[1772746828854,1.31115531,2079.6,2078.9,1.67795003]
[1772746829036,1.31115531,2079.6,2079.0,1.67795003]
[1772746829966,1.31115531,2079.6,2078.9,1.515]
[1772746830468,1.33550465,2079.5,2079.0,1.2025012]
[1772746831447,1.33550465,2079.5,2079.0,3.01808987]
[1772746832072,0.00684606,2079.7,2079.1,1.81558867]
[1772746832670,0.00684606,2079.7,2079.2,1.20238553]
[1772746833056,0.00684606,2079.7,2079.2,3.06285346]
[1772746833878,0.001,2079.3,2079.2,3.06285346]
[1772746834367,0.00684606,2079.7,2079.2,3.06285346]
[1772746834672,0.00684606,2079.7,2079.1,1.86046793]
[1772746835035,0.0554074,2079.9,2079.1,1.86046793]
[1772746836968,0.0554074,2079.9,2079.3,1.86046793]
[1772746837166,0.0554074,2079.9,2079.2,1.20238553]
[1772746837167,0.06611225,2080.1,2079.4,1.86046793]
[1772746837768,4.80627246,2080.7,2079.4,1.86046793]
[1772746837971,0.06611225,2080.5,2079.4,1.86046793]
[1772746839171,0.07340025,2080.3,2079.5,3.06268]
[1772746841151,0.08028069,2080.1,2079.5,3.06268]
[1772746841354,0.08028069,2080.1,2079.5,3.06266958]
[1772746843447,1.28214945,2080.1,2079.5,3.06266958]
[1772746843777,0.08677914,2080.0,2079.6,1.86046793]
[1772746844975,0.0898812,2080.2,2079.6,1.86046793]
[1772746845350,0.09288804,2080.1,2079.6,3.06257909]
[1772746846348,0.09020693,2260.3,2079.6,3.06257909]
[1772746846349,0.09580342,2080.4,2079.7,1.86046793]
[1772746846548,0.001,2079.9,2079.7,1.86046793]
[1772746846750,0.09580342,2080.4,2079.7,1.86046793]
[1772746847397,0.09862807,2080.2,2079.7,1.86046793]
[1772746847549,0.09862807,2080.2,2079.6,2.71710899]
[1772746847750,0.09862807,2080.2,2079.6,4.57757692]
[1772746851172,1.20181316,2080.2,2079.6,4.57757692]
[1772746851374,0.10909636,2080.1,2079.6,4.57757692]
[1772746852084,0.11148786,2080.9,2079.7,1.86046793]
[1772746852266,0.11148786,2080.7,2079.7,1.86046793]
[1772746853263,0.11379699,2080.5,2079.8,3.06250658]
[1772746855587,0.11817574,2080.3,2079.8,3.06250658]
[1772746856896,0.11817574,2080.3,2079.9,1.86046793]
[1772746857996,0.11817574,2080.3,2080.0,1.20192307]
[1772746858894,0.11817574,2080.3,2079.9,3.0624095]
[1772746859261,1.31993726,2080.3,2079.9,3.0624095]
[1772746859670,0.11817574,2080.3,2079.9,3.0624095]
[1772746859893,1.31992895,2080.3,2079.9,3.0624095]
[1772746860372,0.11817574,2080.3,2079.9,3.0624095]
[1772746860573,0.001,2080.1,2080.0,1.86046793]
[1772746862599,4.80586525,2080.8,2080.0,1.86046793]
[1772746862600,0.13912428,2080.8,2080.1,1.85996793]
[1772746864674,0.13912428,2080.8,2080.3,1.85996793]
[1772746864937,0.13912428,2080.8,2080.3,3.37396793]
[1772746865103,0.14283312,2080.7,2080.3,1.514]
[1772746865676,0.14283312,2080.7,2080.3,3.37396793]
[1772746866580,0.14283312,2080.7,2080.3,4.57566863]
[1772746866778,1.34436498,2080.7,2080.3,4.57566863]
[1772746866982,1.34436498,2080.7,2080.3,3.37396793]
[1772746867396,1.34436498,2080.7,2080.3,4.57571329]
[1772746872452,0.14283312,2080.7,2080.3,4.57571329]
[1772746872788,0.14283312,2080.7,2080.4,1.85996793]
[1772746872987,0.14977238,2080.9,2080.4,1.85996793]
[1772746873184,0.14977238,2080.8,2080.4,1.85996793]
[1772746873511,0.001,2080.6,2080.4,1.85996793]
[1772746875117,0.15089064,2081.0,2080.6,1.85996793]
[1772746875292,1.35209577,2081.3,2080.6,1.85996793]
[1772746875487,0.15089064,2081.2,2080.6,1.85996793]
[1772746878916,0.15089064,2081.2,2080.6,3.06153506]
[1772746878917,0.15215971,2081.0,2080.6,3.06153506]
[1772746880327,1.20099923,2081.7,2080.6,3.13761492]
[1772746880627,2.84079469,2081.6,2080.6,3.13761492]
[1772746881028,0.00531708,2081.4,2080.6,3.13761492]
[1772746883434,0.00531708,2081.4,2080.7,1.93604779]
[1772746886417,0.00531708,2081.4,2080.8,0.0011]
[1772746886617,0.001,2081.2,2080.8,0.0011]
[1772746886929,0.00602028,2081.1,2080.8,0.0011]
[1772746887540,0.00602028,2081.1,2080.5,0.0011]
[1772746891924,0.00602028,2081.1,2080.0,0.0011]
[1772746892128,0.01480979,2080.4,2080.0,0.0011]
[1772746892809,0.01480979,2080.4,2080.0,1.93769779]
[1772746893319,0.01480979,2080.4,2080.0,0.0011]
[1772746893728,0.01334344,2080.2,2079.5,0.0011]
[1772746894246,0.01287473,2080.0,2079.5,0.0011]
[1772746896244,1.20198086,2079.9,2079.5,0.0011]
[1772746896545,1.21386407,2079.9,2079.5,0.0011]
[1772746897119,0.01188321,2079.9,2079.5,1.93824779]
[1772746897325,1.20195737,2080.0,2079.5,1.93824779]
[1772746897943,1.21325749,2080.0,2079.5,1.93824779]
[1772746899217,0.00998205,2079.9,2079.5,1.93824779]
[1772746899422,0.00998205,2079.9,2079.7,0.0011]
[1772746899629,0.001,2079.8,2079.7,0.0011]
[1772746900043,0.01025437,2079.8,2079.5,0.0011]
[1772746901117,1.20209645,2079.7,2079.5,0.0011]
[1772746902475,4.80769572,2080.0,2079.6,1.93769779]
[1772746902476,1.20196782,2080.0,2079.6,1.93769779]
[1772746903746,0.001,2080.0,2079.8,1.93769779]
[1772746904051,1.20179081,2080.3,2079.8,1.93769779]
[1772746904223,0.001,2080.2,2079.8,1.93769779]
[1772746907465,0.001,2080.1,2079.8,3.13973541]
[1772746907621,0.001,2080.2,2079.8,3.13973541]
[1772746908854,0.001,2080.1,2079.9,1.93769779]
[1772746909035,0.001,2080.2,2079.9,1.93769779]
[1772746909235,1.20140323,2080.9,2079.9,1.93769779]
[1772746909236,0.001,2080.8,2079.9,1.93769779]
[1772746909832,0.001,2080.7,2079.9,1.93769779]
[1772746910035,0.001,2080.8,2079.9,1.93769779]
[1772746911328,0.001,2080.7,2080.1,1.93769779]
[1772746911531,0.001,2081.2,2080.1,1.93769779]
[1772746911742,0.001,2081.1,2080.1,1.93769779]
[1772746911943,0.001,2080.6,2080.1,1.93769779]
[1772746913231,0.001,2080.6,2080.2,1.20180751]
[1772746913433,0.002,2080.6,2080.3,1.93769779]
[1772746922268,0.002,2080.6,2080.4,1.93769779]
[1772746926484,0.001,2081.2,2080.5,1.93669779]
[1772746928544,1.20223005,2081.2,2080.7,1.93669779]
[1772746930563,0.001,2081.2,2080.7,1.93669779]
[1772746933054,0.001,2081.2,2080.3,1.93669779]
[1772746933259,2.84233561,2081.2,2080.3,1.93669779]
[1772746935261,1.20128778,2081.1,2080.3,1.93669779]
[1772746936285,2.84452426,2081.0,2080.3,1.93669779]
[1772746937514,1.20140323,2080.9,2080.3,1.93669779]
[1772746939426,0.001,2081.0,2080.3,1.93669779]
[1772746939630,2.84912863,2081.0,2080.3,1.93669779]
[1772746941307,1.20146097,2080.8,2080.0,1.93779779]
[1772746941605,2.84812863,2080.7,2080.0,1.93779779]
[1772746941817,2.84812863,2080.7,2080.0,0.0011]
[1772746942993,2.84812863,2080.7,2080.0,1.93779779]
[1772746944113,1.20157646,2080.6,2080.0,1.93779779]
[1772746945995,2.84367262,2080.5,2079.8,0.0011]
[1772746946199,1.86817416,2080.2,2079.6,1.91011205]
[1772746948293,3.11644186,2080.1,2079.6,1.91011205]
[1772746949123,3.11644186,2080.1,2080.0,0.0011]
[1772746949820,1.91492574,2080.0,2079.5,0.0011]
[1772746950798,3.1169066,2079.9,2079.5,0.0011]
[1772746950998,3.1169066,2079.9,2079.5,1.9044123]
[1772746951703,3.11680801,2080.1,2079.5,1.9044123]
[1772746952118,3.11679688,2080.1,2079.5,1.9044123]
[1772746952721,4.80734638,2080.2,2079.5,1.20327473]
[1772746952924,6.72227212,2080.2,2079.6,1.9033123]
[1772746953117,1.91492574,2080.1,2079.6,1.9033123]
[1772746956127,1.20192307,2080.0,2079.6,1.9033123]
[1772746958024,1.20203865,2079.8,2079.5,0.0011]
[1772746958233,3.11685597,2079.8,2079.5,0.0011]
[1772746958448,3.11685597,2079.8,2079.5,1.9044123]
[1772746960826,3.11685597,2079.8,2079.7,0.0011]
[1772746961330,4.80815463,2079.9,2079.7,0.0011]
[1772746961331,1.20201414,2079.9,2079.7,0.0011]
[1772746961501,3.11175161,2080.3,2079.7,1.9044123]
[1772746962206,3.11004002,2080.4,2079.7,1.9044123]
[1772746962411,3.11004002,2080.4,2079.9,1.9033123]
[1772746962625,1.20173571,2080.4,2079.9,1.9033123]
[1772746962821,3.11004002,2080.4,2079.9,1.9033123]
[1772746963535,1.90660505,2080.3,2079.7,0.0011]
[1772746963738,1.90660505,2080.3,2079.7,1.9044123]
[1772746964510,3.10669558,2080.2,2079.7,1.9044123]
[1772746966437,1.20180751,2080.2,2079.7,1.9044123]
[1772746966638,3.10319197,2080.2,2079.7,1.9044123]
[1772746969647,1.20180751,2080.2,2079.8,1.9033123]
[1772746969815,3.09776759,2080.2,2079.8,1.9033123]
[1772746970146,1.20180751,2080.2,2079.8,1.9033123]
[1772746971345,4.80723007,2080.3,2079.8,1.9033123]
[1772746971837,6.6994656,2080.3,2079.8,1.9033123]
[1772746972614,1.20173291,2080.4,2080.0,1.9033123]
[1772746974032,1.88650442,2080.3,2079.9,0.0011]
[1772746974237,1.88650442,2080.3,2079.9,1.9044123]
[1772746975656,1.88454759,2080.5,2079.9,1.9044123]
[1772746975868,4.80631665,2080.6,2080.0,1.9033123]
[1772746976658,6.68891242,2080.6,2080.0,1.9033123]
[1772746977444,1.88259577,2080.6,2080.0,1.9033123]
[1772746977926,1.20163422,2080.5,2080.0,1.9033123]
[1772746978127,3.08023271,2080.5,2080.0,1.9033123]
[1772746981266,1.82206996,2080.4,2080.0,1.9033123]
[1772746982060,1.20163422,2080.5,2080.1,1.8904059]
[1772746983232,4.80653689,2080.6,2080.1,1.8904059]
[1772746986470,0.001,2080.4,2080.1,1.8904059]
[1772746988363,0.001,2080.4,2080.2,1.8904059]
[1772746995740,0.001,2080.4,2079.9,4.80891395]
[1772746995741,1.82306996,2080.4,2079.9,0.0011]
[1772746995935,1.82306996,2080.4,2079.9,1.8915059]
[1772746997852,1.82206996,2080.2,2079.9,1.8915059]
[1772746998375,1.82306996,2080.2,2079.9,1.8915059]
[1772746998768,1.82306996,2080.2,2079.9,0.0011]
[1772747000254,1.82206996,2080.0,2079.9,0.0011]
[1772747002253,3.02399303,2080.0,2079.9,0.0011]
[1772747003472,1.20192307,2080.0,2079.9,0.0011]
[1772747004477,4.80754465,2080.1,2079.9,0.0011]
[1772747005380,4.80754465,2080.1,2079.9,1.8915059]
[1772747005381,1.20186529,2080.1,2079.9,1.8915059]
[1772747005581,1.20284673,2080.2,2079.9,1.8915059]
[1772747005771,0.001,2080.2,2079.9,1.8915059]
[1772747006085,1.20281051,2080.2,2079.9,1.8915059]
[1772747007383,3.01436113,2080.2,2079.9,1.8915059]
[1772747009384,1.69345875,2080.1,2079.9,0.0011]
[1772747010863,1.20192307,2080.0,2079.9,0.0011]
[1772747012171,1.80079423,2079.9,2079.7,0.0011]
[1772747012486,3.0027173,2080.0,2079.7,0.0011]
[1772747013987,1.79818181,2079.9,2079.7,0.0011]
[1772747015795,1.20203865,2079.8,2079.7,0.0011]
[1772747016491,2.99223322,2079.8,2079.7,0.0011]
[1772747019297,1.20202792,2079.9,2079.7,1.71391538]
[1772747021397,0.001,2079.8,2079.7,1.71391538]
[1772747022513,0.001,2079.8,2079.7,0.0011]
[1772747022683,0.001,2079.8,2079.7,1.71391538]
[1772747028216,1.20285421,2080.2,2079.8,1.71281538]
[1772747028516,0.001,2080.2,2079.8,1.71281538]
[1772747028698,0.001,2080.2,2079.9,1.71281538]
[1772747029699,0.001,2080.4,2079.9,1.71281538]
[1772747029700,4.0477362,2080.6,2079.9,1.71281538]
[1772747029978,1.2015817,2080.6,2079.9,1.71281538]
[1772747030687,1.2015817,2080.6,2080.1,1.71281538]
[1772747031188,1.75054963,2080.5,2080.1,1.71281538]
[1772747031791,1.75054963,2080.5,2079.9,1.71281538]
[1772747033506,2.94672232,2080.4,2080.0,1.71281538]
[1772747034410,2.94772232,2080.4,2080.0,1.71281538]
[1772747035609,2.94772232,2080.4,2080.0,1.2019166]
[1772747035912,2.94772232,2080.4,2080.1,1.71281538]
[1772747039021,1.73120497,2080.3,2079.9,0.0011]
[1772747040086,1.66931737,2080.1,2079.9,0.0011]
[1772747040998,0.001,2080.4,2080.0,1.68901854]
[1772747041624,1.20270016,2080.4,2080.0,1.68901854]
[1772747042007,0.001,2080.4,2080.0,1.68901854]
[1772747042323,0.001,2080.4,2080.1,1.68901854]
[1772747044634,0.001,2080.4,2080.2,1.68901854]
[1772747045409,1.2024634,2080.8,2080.2,1.68901854]
[1772747045606,1.20246619,2080.8,2080.2,1.68901854]
[1772747046112,2.87178356,2080.8,2080.2,1.68901854]
[1772747046445,1.66931737,2080.7,2080.2,1.68901854]
[1772747046611,1.20157646,2080.6,2080.3,1.68901854]
[1772747047823,2.87087821,2080.7,2080.3,1.68901854]
[1772747048023,1.20250921,2080.8,2080.3,1.68901854]
[1772747048522,1.67031737,2080.8,2080.3,2.89076483]
[1772747048838,1.67031737,2080.8,2080.4,1.68901854]
[1772747049342,0.001,2080.8,2080.4,1.68901854]
[1772747051138,1.20246097,2080.8,2080.4,1.68901854]
[1772747052678,1.20246097,2080.8,2080.5,1.68901854]
[1772747052842,0.001,2080.8,2080.5,1.68901854]
[1772747053207,1.67031737,2080.8,2080.3,1.68901854]
[1772747054943,0.001,2080.8,2080.3,1.68901854]
[1772747055330,0.001,2080.8,2080.5,1.68901854]
[1772747055541,1.67031737,2080.8,2080.2,1.68901854]
[1772747055841,1.67031737,2080.8,2080.3,1.68901854]
[1772747057512,2.8718136,2080.8,2080.4,1.68901854]
[1772747057826,0.001,2080.6,2080.4,1.68901854]
[1772747060175,0.001,2080.6,2080.5,1.68901854]
[1772747066649,0.001,2080.8,2080.5,1.68901854]
[1772747066863,0.001,2081.0,2080.5,1.68901854]
[1772747068037,0.001,2081.0,2080.7,1.68901854]
[1772747070236,0.001,2081.0,2080.9,1.6752686]
[1772747070629,2.85716203,2081.2,2080.9,1.6752686]
[1772747070630,0.001,2081.2,2080.9,1.6752686]
[1772747072249,1.64033585,2081.2,2080.9,1.6752686]
[1772747072663,2.84159426,2081.2,2080.9,1.6752686]
[1772747074283,1.63355657,2081.1,2080.7,1.6752686]
[1772747074731,1.63355657,2081.1,2080.8,1.6752686]
[1772747075203,0.001,2081.2,2080.8,1.6752686]
[1772747075369,1.20109773,2081.5,2080.8,1.6752686]
[1772747075530,2.83170805,2081.6,2080.8,1.6752686]
[1772747075951,1.63167116,2081.5,2080.8,1.6752686]
[1772747076751,2.83275495,2081.5,2081.0,1.6752686]
[1772747076945,2.83273303,2081.5,2081.0,1.6752686]
[1772747080078,1.63167116,2081.5,2081.2,1.6752686]
[1772747080583,2.83273579,2081.5,2081.2,1.6752686]
[1772747083967,0.001,2081.3,2081.2,1.6752686]
[1772747085779,1.60382335,2081.3,2081.1,0.0011]
[1772747086155,0.001,2081.3,2081.1,0.0011]
[1772747086355,0.001,2081.3,2081.1,1.6763686]
[1772747095377,0.001,2081.3,2081.2,1.6752686]
[1772747096370,0.001,2081.3,2081.2,2.87649865]
[1772747096594,0.001,2081.3,2081.2,1.6752686]
[1772747100387,0.001,2081.3,2081.1,1.65442283]
[1772747101905,2.27464888,2082.0,2081.3,1.65332283]
[1772747102074,2.27464888,2082.3,2081.3,1.65332283]
[1772747102272,1.55552948,2082.1,2081.4,1.65332283]
[1772747103605,1.55267779,2081.9,2081.1,0.0011]
[1772747103766,1.55267779,2081.9,2081.1,1.65442283]
[1772747104697,1.20076849,2082.0,2081.1,1.65442283]
[1772747104698,1.54982181,2081.7,2081.1,1.65442283]
[1772747105180,1.54982181,2081.7,2081.1,0.0011]
[1772747105380,1.20099923,2081.6,2081.1,0.0011]
[1772747105690,1.54694981,2081.5,2081.1,0.0011]
[1772747107401,1.20111463,2081.4,2081.1,0.0011]
[1772747107582,2.74238242,2081.4,2081.1,0.0011]
[1772747108902,2.74238242,2081.4,2081.3,0.0011]
[1772747109400,1.53447689,2081.3,2080.9,0.0011]
[1772747109589,1.53447689,2081.1,2080.9,0.0011]
[1772747109986,1.53447689,2081.1,2080.6,0.0011]
[1772747111482,1.52896943,2080.9,2080.6,0.0011]
[1772747114387,2.72193342,2080.8,2080.6,0.0011]
[1772747115715,1.20146097,2080.8,2080.5,1.65442283]
[1772747116016,1.20146097,2080.8,2080.6,0.0022]
[1772747116603,2.71519795,2080.8,2080.6,0.0022]
[1772747119733,2.71519795,2080.8,2080.5,1.65442283]
[1772747120034,2.71519795,2080.8,2080.6,0.0022]
[1772747120701,2.71519795,2080.8,2080.5,1.65442283]
[1772747120702,1.50251324,2080.7,2080.3,0.0011]
[1772747121132,1.50251324,2080.7,2080.3,1.65442283]
[1772747121500,2.70104298,2081.0,2080.3,2.85615261]
[1772747121705,1.49969748,2080.9,2080.4,1.65332283]
[1772747122406,1.49969748,2080.9,2080.3,0.0011]
[1772747122626,1.49969748,2080.9,2080.3,1.65442283]
[1772747124204,2.70115183,2080.9,2080.4,1.65332283]
[1772747124534,4.80561295,2081.0,2080.4,1.65332283]
[1772747124535,2.69275763,2081.0,2080.4,1.65332283]
[1772747124947,1.20138469,2081.0,2080.4,1.65332283]
[1772747126841,1.20138469,2081.0,2080.5,1.65332283]
[1772747127428,1.58197851,2081.2,2080.6,1.65332283]
[1772747128839,2.82662188,2081.1,2080.6,1.65332283]
[1772747129031,1.6253341,2081.0,2080.6,1.65332283]
[1772747130441,1.20128778,2081.1,2080.6,1.65332283]
[1772747130749,1.20128778,2081.1,2080.6,1.60756066]
[1772747131331,1.66592651,2081.1,2080.6,1.60756066]
[1772747131943,1.66592651,2081.1,2080.7,1.60756066]
[1772747132533,1.66592651,2081.1,2080.8,1.60866066]
[1772747132746,1.66592651,2081.4,2080.8,1.60866066]
[1772747132948,1.66592651,2081.3,2080.9,1.60756066]
[1772747133455,2.86704114,2081.4,2080.9,1.60756066]
[1772747135132,1.66592651,2081.3,2080.9,1.60756066]
[1772747135935,1.20111463,2081.4,2081.0,1.60756066]
[1772747136117,2.86803071,2081.5,2081.0,1.60756066]
[1772747136318,1.20206636,2081.5,2081.0,1.60756066]
[1772747138128,0.001,2081.5,2081.1,1.60756066]
[1772747140754,0.001,2081.5,2081.2,1.60756066]
[1772747140960,1.20095495,2081.7,2081.3,1.60756066]
[1772747144530,2.86681989,2081.8,2081.3,1.60756066]
[1772747145255,0.001,2081.5,2081.4,1.60756066]
[1772747146736,1.20088385,2081.9,2081.3,1.60756066]
[1772747146938,1.66592651,2081.8,2081.1,1.20124989]
[1772747147343,1.66592651,2081.8,2081.2,1.60756066]
[1772747148766,2.86686804,2081.7,2081.3,1.60756066]
[1772747149059,1.66592651,2081.6,2081.1,1.60756066]
[1772747150936,2.86698344,2081.5,2081.1,1.60756066]
[1772747153662,1.66592651,2081.7,2081.2,1.60756066]
[1772747155873,2.86692574,2081.6,2081.2,1.60756066]
[1772747156572,2.86692574,2081.6,2081.3,1.60756066]
[1772747157146,1.66592651,2081.6,2081.3,1.60756066]
[1772747157447,0.001,2081.5,2081.4,0.0011]
[1772747160176,0.51422011,2081.7,2081.4,1.20221463]
[1772747160385,0.51422011,2081.7,2081.4,0.0011]
[1772747161263,0.56150947,2082.0,2081.4,1.61301278]
[1772747161463,0.56150947,2081.8,2081.4,1.61301278]
[1772747162657,1.20094153,2081.7,2081.4,1.61301278]
[1772747162860,1.20094153,2081.7,2081.1,0.0011]
[1772747162861,0.55979486,2081.6,2081.1,0.0011]
[1772747163554,0.55979486,2081.6,2081.1,1.61301278]
[1772747165309,1.75573123,2081.5,2081.1,1.61301278]
[1772747167771,1.20105693,2081.5,2081.1,1.61301278]
[1772747168685,1.75049078,2081.5,2081.1,1.61301278]
[1772747169375,1.75049078,2081.5,2081.3,0.0011]
[1772747174564,0.53876123,2081.4,2081.3,0.0011]
[1772747175676,1.73800927,2081.5,2081.3,0.0011]
[1772747179667,1.73167789,2081.6,2081.3,1.61301278]
[1772747181099,1.73167789,2081.6,2081.3,0.0011]
[1772747181100,0.52597482,2081.5,2081.3,0.0011]
[1772747181272,0.52597482,2081.5,2081.1,0.0011]
[1772747181666,0.52487482,2081.3,2081.1,0.0011]
[1772747183697,1.72243643,2081.2,2081.1,0.0011]
[1772747186674,1.20123005,2081.2,2081.1,0.0011]
[1772747186899,1.20117234,2081.3,2081.1,0.0011]
[1772747187105,0.001,2081.4,2081.1,1.61301278]
[1772747188206,0.001,2081.4,2081.2,1.61191278]
[1772747192274,0.001,2081.4,2081.3,1.6090614]
[1772747194194,1.20076849,2082.0,2081.3,1.6090614]
[1772747194412,1.70415393,2082.1,2081.3,1.6090614]
[1772747194582,0.5034229,2082.0,2081.3,1.6090614]
[1772747195082,1.70424574,2082.0,2081.5,1.6090614]
[1772747197320,1.70424574,2082.0,2081.6,1.6090614]
[1772747199510,1.2007539,2082.1,2081.7,1.6090614]
[1772747199713,0.493751,2082.2,2081.7,1.6090614]
[1772747199914,0.493751,2082.3,2081.7,1.6090614]
[1772747200419,1.20053784,2082.4,2081.7,1.6090614]
[1772747200599,0.49178492,2082.3,2081.7,1.6090614]
[1772747201686,1.69022051,2082.6,2081.9,1.6090614]
[1772747202116,0.4878232,2082.5,2081.9,1.6090614]
[1772747202286,1.68824574,2082.6,2081.9,1.6090614]
[1772747204112,0.48386354,2083.0,2082.1,1.6090614]
[1772747204317,0.48386354,2082.8,2082.1,1.6090614]
[1772747205892,0.001,2082.4,2082.1,1.6090614]
[1772747206395,0.001,2082.4,2082.2,1.6090614]
[1772747208312,0.001,2082.4,2082.2,1.20060651]
[1772747208518,0.001,2082.4,2082.3,1.6090614]
[1772747209827,1.2003661,2082.7,2082.3,1.6090614]
[1772747210715,1.67327281,2082.7,2082.3,1.6090614]
[1772747211107,1.67327281,2082.7,2082.1,4.80272652]
[1772747211108,0.47093297,2082.6,2082.1,1.6090614]
[1772747211931,1.2003661,2082.7,2082.1,1.6090614]
[1772747212135,1.66929676,2082.7,2082.1,1.6090614]
[1772747212513,1.66929676,2082.7,2082.2,1.6090614]
[1772747213538,0.46692263,2082.6,2082.2,1.6090614]
[1772747213750,1.2003661,2082.7,2082.2,1.6090614]
[1772747213947,1.66727406,2082.8,2082.2,1.6090614]
[1772747214437,1.20035143,2082.8,2082.3,1.6090614]
[1772747214601,0.46491687,2082.7,2082.1,1.6090614]
[1772747216745,1.66131973,2082.6,2082.2,1.6090614]
[1772747217537,1.66131973,2082.6,2082.4,0.0011]
[1772747217839,1.66231973,2082.6,2082.4,0.0011]
[1772747218016,0.46189719,2082.6,2082.4,0.0011]
[1772747218332,0.001,2082.6,2082.4,0.0011]
[1772747218732,0.45687122,2082.5,2082.4,0.0011]
[1772747218931,0.45687122,2082.5,2082.1,1.6101614]
[1772747220704,1.20053784,2082.4,2082.1,1.6101614]
[1772747220899,1.65283458,2082.6,2082.2,1.50207176]
[1772747221100,0.44886416,2082.5,2082.2,1.50207176]
[1772747221307,0.44886416,2082.5,2082.1,0.0011]
[1772747222647,0.44886416,2082.5,2081.9,0.0011]
[1772747222885,0.44632082,2082.3,2081.9,0.0011]
[1772747223425,2.83763055,2082.2,2081.9,0.0011]